[Event "Early-Titled-Tuesday-Blitz-January-16-2024"]
[Site "Chess.com"]
[Date "2024.01.16"]
[Round "3"]
[White "lilleper1"]
[Black "Arifarsky"]
[Result "1/2-1/2"]
[WhiteElo "2945"]
[BlackElo "2719"]
[TimeControl "180+1"]
[EndTime "8:29:43 PST"]
[Termination "Game drawn by repetition"]

1. Nf3 {[%clk 0:03:00.9]} 1... Nf6 {[%clk 0:02:59.3]} 2. c4 {[%clk 0:03:00.7]}
2... c5 {[%clk 0:02:57.4]} 3. Nc3 {[%clk 0:02:59.6]} 3... g6 {[%clk 0:02:55.7]}
4. e4 {[%clk 0:02:58.9]} 4... d6 {[%clk 0:02:54.4]} 5. d4 {[%clk 0:02:58.2]}
5... Bg7 {[%clk 0:02:45.1]} 6. Be2 {[%clk 0:02:57.3]} 6... O-O {[%clk
0:02:44.3]} 7. O-O {[%clk 0:02:57]} 7... Nc6 {[%clk 0:02:42]} 8. d5 {[%clk
0:02:52.3]} 8... Na5 {[%clk 0:02:39.2]} 9. h3 {[%clk 0:02:45.2]} 9... a6 {[%clk
0:02:38]} 10. a4 {[%clk 0:02:44.9]} 10... e5 {[%clk 0:02:34]} 11. Ne1 {[%clk
0:02:38]} 11... Ne8 {[%clk 0:02:10.8]} 12. Rb1 {[%clk 0:02:38]} 12... Nc7 {[%clk
0:02:08.9]} 13. Be3 {[%clk 0:02:30.5]} 13... Bd7 {[%clk 0:02:07]} 14. b4 {[%clk
0:02:27.2]} 14... cxb4 {[%clk 0:02:03.7]} 15. Rxb4 {[%clk 0:02:28.1]} 15... b5
{[%clk 0:01:45.8]} 16. cxb5 {[%clk 0:02:27.2]} 16... axb5 {[%clk 0:01:45.3]} 17.
axb5 {[%clk 0:02:28.1]} 17... Nb7 {[%clk 0:01:42.5]} 18. Nc2 {[%clk 0:02:20.6]}
18... Nc5 {[%clk 0:01:35.9]} 19. Rb1 {[%clk 0:02:15.8]} 19... Rb8 {[%clk
0:01:20.7]} 20. Bxc5 {[%clk 0:02:12]} 20... dxc5 {[%clk 0:01:21.1]} 21. Ne3
{[%clk 0:02:12.5]} 21... f5 {[%clk 0:01:15]} 22. b6 {[%clk 0:02:07.4]} 22... Ne8
{[%clk 0:01:14.9]} 23. Nc4 {[%clk 0:02:04.1]} 23... Qg5 {[%clk 0:01:10.1]} 24.
Ra1 {[%clk 0:01:56.1]} 24... Nf6 {[%clk 0:01:07.8]} 25. Ra7 {[%clk 0:01:33]}
25... Rf7 {[%clk 0:00:41.4]} 26. Nxe5 {[%clk 0:01:30.3]} 26... Re7 {[%clk
0:00:34]} 27. Nxd7 {[%clk 0:01:29.8]} 27... Rxd7 {[%clk 0:00:32.6]} 28. Rxd7
{[%clk 0:01:28.1]} 28... Nxd7 {[%clk 0:00:33.5]} 29. Na4 {[%clk 0:01:23.4]}
29... Bd4 {[%clk 0:00:31.8]} 30. exf5 {[%clk 0:01:18.4]} 30... Nxb6 {[%clk
0:00:28.2]} 31. Nxb6 {[%clk 0:01:12.3]} 31... Rxb6 {[%clk 0:00:28.5]} 32. fxg6
{[%clk 0:01:10.7]} 32... hxg6 {[%clk 0:00:23.8]} 33. Bg4 {[%clk 0:01:08.9]}
33... Kg7 {[%clk 0:00:22.6]} 34. Qe2 {[%clk 0:01:06.7]} 34... Qxd5 {[%clk
0:00:21.1]} 35. Bf3 {[%clk 0:00:56.7]} 35... Qe5 {[%clk 0:00:20.5]} 36. Qd3
{[%clk 0:00:54.7]} 36... Rb2 {[%clk 0:00:19.8]} 37. Qa3 {[%clk 0:00:51]} 37...
Kh6 {[%clk 0:00:15.5]} 38. Qa8 {[%clk 0:00:47.9]} 38... Kg7 {[%clk 0:00:10]} 39.
Qa7+ {[%clk 0:00:47.5]} 39... Kh6 {[%clk 0:00:10.2]} 40. Qa3 {[%clk 0:00:47.8]}
40... Kg7 {[%clk 0:00:10]} 41. Qd3 {[%clk 0:00:47.2]} 41... Kh6 {[%clk
0:00:09.2]} 42. h4 {[%clk 0:00:45.2]} 42... Rxf2 {[%clk 0:00:07.1]} 43. Rxf2
{[%clk 0:00:41.6]} 43... Qe1+ {[%clk 0:00:07.4]} 44. Kh2 {[%clk 0:00:41]} 44...
Qxf2 {[%clk 0:00:08.1]} 45. Qe4 {[%clk 0:00:33]} 45... Qg1+ {[%clk 0:00:07.5]}
46. Kh3 {[%clk 0:00:32.6]} 46... Qe3 {[%clk 0:00:07.9]} 47. Qd5 {[%clk 0:00:26]}
47... Qe7 {[%clk 0:00:07.1]} 48. g4 {[%clk 0:00:22.5]} 48... Kg7 {[%clk
0:00:07.4]} 49. g5 {[%clk 0:00:22.4]} 49... Qf7 {[%clk 0:00:07.8]} 50. Qc6
{[%clk 0:00:20.6]} 50... Qf5+ {[%clk 0:00:07.9]} 51. Kg2 {[%clk 0:00:20.5]}
51... Qc2+ {[%clk 0:00:08]} 52. Kh3 {[%clk 0:00:19.9]} 52... Qf5+ {[%clk
0:00:08.1]} 53. Kg2 {[%clk 0:00:19.8]} 53... Qc2+ {[%clk 0:00:08.1]} 54. Kh3
{[%clk 0:00:15.8]} 54... Qf5+ {[%clk 0:00:08.3]} 1/2-1/2

[Event "Early-Titled-Tuesday-Blitz-January-16-2024"]
[Site "Chess.com"]
[Date "2024.01.16"]
[Round "3"]
[White "xakevicius91"]
[Black "MyDream003"]
[Result "0-1"]
[WhiteElo "2521"]
[BlackElo "2858"]
[TimeControl "180+1"]
[EndTime "8:29:43 PST"]
[Termination "MyDream003 won by resignation"]

1. e4 {[%clk 0:03:00.9]} 1... c5 {[%clk 0:02:59.7]} 2. Nf3 {[%clk 0:03:01]} 2...
Nc6 {[%clk 0:02:59.9]} 3. Bc4 {[%clk 0:03:01.2]} 3... e6 {[%clk 0:02:59.9]} 4.
O-O {[%clk 0:03:01.2]} 4... d6 {[%clk 0:03:00.3]} 5. c3 {[%clk 0:02:59.3]} 5...
Nf6 {[%clk 0:03:00.5]} 6. Re1 {[%clk 0:02:59.9]} 6... Be7 {[%clk 0:03:00.4]} 7.
d4 {[%clk 0:02:58.4]} 7... cxd4 {[%clk 0:02:59.7]} 8. cxd4 {[%clk 0:02:59.3]}
8... O-O {[%clk 0:02:59.8]} 9. Bf1 {[%clk 0:02:56.9]} 9... Bd7 {[%clk 0:02:57]}
10. Nc3 {[%clk 0:02:57.1]} 10... Rc8 {[%clk 0:02:56.4]} 11. Qe2 {[%clk
0:02:55.9]} 11... e5 {[%clk 0:02:53.9]} 12. dxe5 {[%clk 0:02:54.7]} 12... dxe5
{[%clk 0:02:52.9]} 13. Rd1 {[%clk 0:02:54.5]} 13... Qe8 {[%clk 0:02:47.1]} 14.
h3 {[%clk 0:02:54.5]} 14... h6 {[%clk 0:02:46.6]} 15. Be3 {[%clk 0:02:53.8]}
15... Be6 {[%clk 0:02:44]} 16. Rac1 {[%clk 0:02:46]} 16... Kh8 {[%clk
0:02:37.8]} 17. Kh1 {[%clk 0:02:45.4]} 17... Rg8 {[%clk 0:02:28.3]} 18. Qb5
{[%clk 0:02:30.7]} 18... Rb8 {[%clk 0:02:20.9]} 19. Nd5 {[%clk 0:01:56.9]} 19...
Bd8 {[%clk 0:02:14]} 20. Nxf6 {[%clk 0:01:53.4]} 20... Bxf6 {[%clk 0:02:05.8]}
21. Bc4 {[%clk 0:01:51.8]} 21... a6 {[%clk 0:02:05.3]} 22. Qb6 {[%clk 0:01:43]}
22... Bd8 {[%clk 0:02:01.2]} 23. Qc5 {[%clk 0:01:42.2]} 23... Be7 {[%clk
0:01:57.8]} 24. Qb6 {[%clk 0:01:42.1]} 24... Bxc4 {[%clk 0:01:49.2]} 25. Rxc4
{[%clk 0:01:43]} 25... f6 {[%clk 0:01:49.9]} 26. Nh4 {[%clk 0:01:32]} 26... Qf7
{[%clk 0:01:45.5]} 27. b3 {[%clk 0:01:27.3]} 27... g6 {[%clk 0:01:37]} 28. Rcc1
{[%clk 0:01:16.3]} 28... Kh7 {[%clk 0:01:36.5]} 29. Qc7 {[%clk 0:01:11.5]} 29...
Rgc8 {[%clk 0:01:33.1]} 30. Qd7 {[%clk 0:01:10.5]} 30... Kg7 {[%clk 0:01:25.2]}
31. Qg4 {[%clk 0:01:08.6]} 31... h5 {[%clk 0:01:23.3]} 32. Qe2 {[%clk
0:01:03.2]} 32... Qe6 {[%clk 0:01:21.2]} 33. Nf3 {[%clk 0:00:59.2]} 33... Rh8
{[%clk 0:01:18.2]} 34. Qc4 {[%clk 0:00:57]} 34... Qxc4 {[%clk 0:01:06.7]} 35.
Rxc4 {[%clk 0:00:57.9]} 35... Rhd8 {[%clk 0:01:05.9]} 36. Rcc1 {[%clk 0:00:58]}
36... Kf7 {[%clk 0:01:05.8]} 37. Bb6 {[%clk 0:00:56.5]} 37... Rxd1+ {[%clk
0:01:05.9]} 38. Rxd1 {[%clk 0:00:57.4]} 38... Ke6 {[%clk 0:01:06.6]} 39. Kg1
{[%clk 0:00:57.6]} 39... Rc8 {[%clk 0:01:07]} 40. Kf1 {[%clk 0:00:56.9]} 40...
Nb4 {[%clk 0:01:07.4]} 41. Rd2 {[%clk 0:00:57]} 41... Rc1+ {[%clk 0:01:06.1]}
42. Ke2 {[%clk 0:00:57.2]} 42... Ra1 {[%clk 0:01:04.8]} 43. a4 {[%clk
0:00:29.1]} 43... Rb1 {[%clk 0:01:04.7]} 44. Ne1 {[%clk 0:00:29.7]} 44... Rxb3
{[%clk 0:01:04.9]} 45. g3 {[%clk 0:00:27.7]} 45... Nc6 {[%clk 0:01:00.6]} 46.
Be3 {[%clk 0:00:27.5]} 46... Rb4 {[%clk 0:00:57.4]} 47. f4 {[%clk 0:00:26.5]}
47... exf4 {[%clk 0:00:57]} 48. gxf4 {[%clk 0:00:27.4]} 48... Rxe4 {[%clk
0:00:57.4]} 49. Kf3 {[%clk 0:00:22.7]} 49... Rxa4 {[%clk 0:00:57]} 50. Nd3
{[%clk 0:00:22.7]} 50... Rc4 {[%clk 0:00:54.3]} 51. Re2 {[%clk 0:00:21.9]} 51...
Kf7 {[%clk 0:00:53.8]} 52. Rd2 {[%clk 0:00:21]} 52... a5 {[%clk 0:00:53.7]} 53.
Nf2 {[%clk 0:00:21]} 53... Ke8 {[%clk 0:00:51.6]} 54. Ne4 {[%clk 0:00:20.1]}
54... a4 {[%clk 0:00:52.2]} 55. f5 {[%clk 0:00:11.5]} 55... gxf5 {[%clk
0:00:49.7]} 56. Ng3 {[%clk 0:00:11.6]} 56... Ne5+ {[%clk 0:00:46.9]} 57. Ke2
{[%clk 0:00:10.3]} 57... f4 {[%clk 0:00:47.8]} 58. Bxf4 {[%clk 0:00:08.7]} 58...
Rxf4 {[%clk 0:00:47.7]} 59. Nxh5 {[%clk 0:00:09.6]} 59... Re4+ {[%clk 0:00:46]}
60. Kd1 {[%clk 0:00:10]} 60... Kf7 {[%clk 0:00:45]} 61. Ng3 {[%clk 0:00:09.3]}
61... Rc4 {[%clk 0:00:45]} 62. Nf5 {[%clk 0:00:08.6]} 62... Rc7 {[%clk
0:00:44.7]} 63. Ne3 {[%clk 0:00:08.3]} 63... a3 {[%clk 0:00:44.9]} 64. Nd5
{[%clk 0:00:08.7]} 64... Rd7 {[%clk 0:00:44.9]} 65. h4 {[%clk 0:00:09]} 65... a2
{[%clk 0:00:44]} 0-1

[Event "Early-Titled-Tuesday-Blitz-January-16-2024"]
[Site "Chess.com"]
[Date "2024.01.16"]
[Round "3"]
[White "carokannlover213"]
[Black "ural58"]
[Result "1-0"]
[WhiteElo "2771"]
[BlackElo "2494"]
[TimeControl "180+1"]
[EndTime "8:29:44 PST"]
[Termination "carokannlover213 won by resignation"]

1. e4 {[%clk 0:03:00.9]} 1... d5 {[%clk 0:02:58.3]} 2. exd5 {[%clk 0:03:00.5]}
2... Qxd5 {[%clk 0:02:58.2]} 3. Nc3 {[%clk 0:03:01.1]} 3... Qa5 {[%clk
0:02:58.5]} 4. d4 {[%clk 0:03:00.4]} 4... Nf6 {[%clk 0:02:58.6]} 5. Nf3 {[%clk
0:03:00.6]} 5... Nc6 {[%clk 0:02:58.6]} 6. Bd2 {[%clk 0:02:53.8]} 6... a6 {[%clk
0:02:58]} 7. Ne4 {[%clk 0:02:45.1]} 7... Qb6 {[%clk 0:02:57.4]} 8. Nxf6+ {[%clk
0:02:45.3]} 8... gxf6 {[%clk 0:02:57.4]} 9. d5 {[%clk 0:02:42.5]} 9... Ne5
{[%clk 0:02:49.6]} 10. Nxe5 {[%clk 0:02:43.1]} 10... fxe5 {[%clk 0:02:49.5]} 11.
Bd3 {[%clk 0:02:43.3]} 11... Qxb2 {[%clk 0:02:40]} 12. Rb1 {[%clk 0:02:40.6]}
12... Qd4 {[%clk 0:02:38.6]} 13. Rb4 {[%clk 0:02:21]} 13... Qxd5 {[%clk
0:02:37.2]} 14. Rh4 {[%clk 0:02:20]} 14... f5 {[%clk 0:02:16.3]} 15. Bc4 {[%clk
0:02:16.4]} 15... Qxg2 {[%clk 0:02:11.9]} 16. Qh5+ {[%clk 0:02:03.9]} 16... Kd8
{[%clk 0:02:11.9]} 17. Rf1 {[%clk 0:01:50.4]} 17... Bd7 {[%clk 0:02:09.8]} 18.
Qf7 {[%clk 0:01:34.5]} 18... Qg7 {[%clk 0:02:02.5]} 19. Qd5 {[%clk 0:01:26.7]}
19... Kc8 {[%clk 0:01:59.2]} 20. Rh3 {[%clk 0:01:17.9]} 20... e6 {[%clk
0:01:57.4]} 21. Qa5 {[%clk 0:01:16.2]} 21... Bd6 {[%clk 0:01:49.4]} 22. Rd3
{[%clk 0:01:14.7]} 22... Qe7 {[%clk 0:01:48.5]} 23. Rb3 {[%clk 0:01:01]} 23...
Bc6 {[%clk 0:01:45.6]} 24. Ke2 {[%clk 0:01:00.3]} 24... Rd8 {[%clk 0:01:30.7]}
25. Rfb1 {[%clk 0:00:50.8]} 25... Qe8 {[%clk 0:01:29.6]} 26. Bg5 {[%clk
0:00:43.7]} 26... Qh5+ {[%clk 0:01:28.6]} 27. Ke1 {[%clk 0:00:31]} 27... Qxg5
{[%clk 0:01:28.6]} 28. Bxe6+ {[%clk 0:00:31.2]} 28... Bd7 {[%clk 0:01:25.8]} 29.
Qd5 {[%clk 0:00:28.3]} 29... Qg1+ {[%clk 0:01:14.4]} 30. Ke2 {[%clk 0:00:27.1]}
30... Qg4+ {[%clk 0:01:14.4]} 31. Kf1 {[%clk 0:00:25.4]} 31... Bxe6 {[%clk
0:00:31.6]} 32. Qxe6+ {[%clk 0:00:26.3]} 32... Rd7 {[%clk 0:00:31.9]} 33. Rg3
{[%clk 0:00:26.4]} 33... Qxg3 {[%clk 0:00:19.5]} 34. hxg3 {[%clk 0:00:26]} 34...
b5 {[%clk 0:00:17.8]} 35. Qxf5 {[%clk 0:00:23.3]} 35... c6 {[%clk 0:00:16.2]}
36. Ke2 {[%clk 0:00:21.2]} 36... Kc7 {[%clk 0:00:16.7]} 37. Rh1 {[%clk
0:00:21.5]} 37... Rh8 {[%clk 0:00:16.2]} 38. Rh6 {[%clk 0:00:20.7]} 38... a5
{[%clk 0:00:13.7]} 39. Re6 {[%clk 0:00:19.3]} 39... Rf8 {[%clk 0:00:12.7]} 40.
Qe4 {[%clk 0:00:18]} 40... Rff7 {[%clk 0:00:12.8]} 41. f3 {[%clk 0:00:16.1]}
41... a4 {[%clk 0:00:13.1]} 42. c4 {[%clk 0:00:15.6]} 42... bxc4 {[%clk
0:00:12.9]} 43. Qxc4 {[%clk 0:00:15.1]} 43... Rde7 {[%clk 0:00:13.1]} 44. Rxe7+
{[%clk 0:00:14.7]} 44... Rxe7 {[%clk 0:00:12.7]} 45. Qxa4 {[%clk 0:00:15.3]}
45... Kd7 {[%clk 0:00:12.7]} 46. Qg4+ {[%clk 0:00:14.9]} 46... Kc7 {[%clk
0:00:12.6]} 47. Qe4 {[%clk 0:00:14]} 47... c5 {[%clk 0:00:12.7]} 48. Kd3 {[%clk
0:00:14]} 48... Kb6 {[%clk 0:00:12.6]} 49. Kc4 {[%clk 0:00:14.3]} 49... Ra7
{[%clk 0:00:12.5]} 50. Qb1+ {[%clk 0:00:14.5]} 50... Kc7 {[%clk 0:00:12.2]} 51.
Kd5 {[%clk 0:00:14.4]} 51... Ra5 {[%clk 0:00:12.3]} 52. Qxh7+ {[%clk 0:00:13.9]}
1-0

[Event "Early-Titled-Tuesday-Blitz-January-16-2024"]
[Site "Chess.com"]
[Date "2024.01.16"]
[Round "3"]
[White "Pawnpusher1245"]
[Black "DAVIDHDZSTS"]
[Result "0-1"]
[WhiteElo "2344"]
[BlackElo "1987"]
[TimeControl "180+1"]
[EndTime "8:29:46 PST"]
[Termination "DAVIDHDZSTS won on time"]

1. d4 {[%clk 0:03:00.9]} 1... e6 {[%clk 0:02:59.7]} 2. Nf3 {[%clk 0:02:56.1]}
2... Nf6 {[%clk 0:02:58.2]} 3. e3 {[%clk 0:02:52.4]} 3... d5 {[%clk 0:02:57.7]}
4. b3 {[%clk 0:02:53]} 4... c5 {[%clk 0:02:51.6]} 5. Bb2 {[%clk 0:02:52.5]} 5...
Nc6 {[%clk 0:02:50.5]} 6. a3 {[%clk 0:02:51.7]} 6... Be7 {[%clk 0:02:45.6]} 7.
Bd3 {[%clk 0:02:51.5]} 7... a6 {[%clk 0:02:43.5]} 8. O-O {[%clk 0:02:51]} 8...
b5 {[%clk 0:02:42.7]} 9. c4 {[%clk 0:02:45.4]} 9... bxc4 {[%clk 0:02:12.7]} 10.
bxc4 {[%clk 0:02:46.3]} 10... cxd4 {[%clk 0:02:12.9]} 11. exd4 {[%clk
0:02:17.8]} 11... dxc4 {[%clk 0:02:10.1]} 12. Bxc4 {[%clk 0:02:18.7]} 12... Qb6
{[%clk 0:02:09.4]} 13. Bc3 {[%clk 0:01:45.9]} 13... Bd7 {[%clk 0:01:17.8]} 14.
Nbd2 {[%clk 0:01:44.4]} 14... O-O {[%clk 0:01:16.9]} 15. Rb1 {[%clk 0:01:43.6]}
15... Qc7 {[%clk 0:01:16.4]} 16. Qe2 {[%clk 0:01:39.3]} 16... Na5 {[%clk
0:01:05.4]} 17. Bxa5 {[%clk 0:01:27.8]} 17... Qxa5 {[%clk 0:01:03.6]} 18. Ne5
{[%clk 0:01:26.3]} 18... Bd6 {[%clk 0:00:47.7]} 19. Bd3 {[%clk 0:01:16.6]} 19...
Bxe5 {[%clk 0:00:37.3]} 20. dxe5 {[%clk 0:01:16.1]} 20... Nd5 {[%clk 0:00:34.2]}
21. Nc4 {[%clk 0:01:06.4]} 21... Qd8 {[%clk 0:00:18.3]} 22. Rfc1 {[%clk
0:00:44.9]} 22... Bb5 {[%clk 0:00:17.8]} 23. Nd6 {[%clk 0:00:38.8]} 23... Nf4
{[%clk 0:00:16]} 24. Qd2 {[%clk 0:00:20.5]} 24... Nxd3 {[%clk 0:00:15.6]} 25.
Rc3 {[%clk 0:00:20.5]} 25... Nxe5 {[%clk 0:00:14.1]} 26. Qf4 {[%clk 0:00:19.3]}
26... Qf6 {[%clk 0:00:12.5]} 27. Qd4 {[%clk 0:00:17.7]} 27... Nc6 {[%clk
0:00:08.3]} 28. Qc5 {[%clk 0:00:14.7]} 28... Ne7 {[%clk 0:00:02.9]} 29. h3
{[%clk 0:00:12]} 29... Ng6 {[%clk 0:00:02.8]} 30. Rbc1 {[%clk 0:00:11.1]} 30...
Qe5 {[%clk 0:00:03.1]} 31. Qc7 {[%clk 0:00:10.5]} 31... h6 {[%clk 0:00:01.9]}
32. Rc5 {[%clk 0:00:09.6]} 32... Qf6 {[%clk 0:00:02.1]} 33. R5c3 {[%clk
0:00:09.4]} 33... Qe7 {[%clk 0:00:02.4]} 34. Qc5 {[%clk 0:00:08.7]} 34... Qf6
{[%clk 0:00:02.2]} 35. Qc7 {[%clk 0:00:08.5]} 35... Ne7 {[%clk 0:00:02.4]} 36.
Rf3 {[%clk 0:00:07.3]} 36... Qg5 {[%clk 0:00:02]} 37. Rg3 {[%clk 0:00:06.7]}
37... Qf6 {[%clk 0:00:02.4]} 38. Rf3 {[%clk 0:00:07]} 38... Nf5 {[%clk
0:00:02.9]} 39. Qc5 {[%clk 0:00:04.6]} 39... Qd4 {[%clk 0:00:02.5]} 40. Nxf5
{[%clk 0:00:04]} 40... Qxc5 {[%clk 0:00:02.5]} 41. Nxh6+ {[%clk 0:00:02.5]}
41... gxh6 {[%clk 0:00:02.1]} 42. Rxc5 {[%clk 0:00:03.4]} 42... f5 {[%clk
0:00:02.3]} 43. Rc7 {[%clk 0:00:02.3]} 43... Rf6 {[%clk 0:00:02.9]} 44. Re3
{[%clk 0:00:01.6]} 44... Re8 {[%clk 0:00:02]} 45. Re5 {[%clk 0:00:02]} 45... Rg6
{[%clk 0:00:02.1]} 46. Rec5 {[%clk 0:00:02.1]} 46... f4 {[%clk 0:00:02.5]} 47.
Ra7 {[%clk 0:00:02.2]} 47... Rg7 {[%clk 0:00:03.1]} 0-1

[Event "Early-Titled-Tuesday-Blitz-January-16-2024"]
[Site "Chess.com"]
[Date "2024.01.16"]
[Round "3"]
[White "ylr5000"]
[Black "francyIM"]
[Result "0-1"]
[WhiteElo "2441"]
[BlackElo "2821"]
[TimeControl "180+1"]
[EndTime "8:29:51 PST"]
[Termination "francyIM won by resignation"]

1. d4 {[%clk 0:03:00.9]} 1... Nf6 {[%clk 0:02:51.8]} 2. c4 {[%clk 0:03:01.1]}
2... g6 {[%clk 0:02:50.4]} 3. Nc3 {[%clk 0:03:01.3]} 3... Bg7 {[%clk 0:02:49.4]}
4. e4 {[%clk 0:03:01.3]} 4... d6 {[%clk 0:02:44.5]} 5. Be2 {[%clk 0:03:01.8]}
5... e5 {[%clk 0:02:43.7]} 6. d5 {[%clk 0:03:00.3]} 6... a5 {[%clk 0:02:40.8]}
7. Be3 {[%clk 0:02:56.6]} 7... Na6 {[%clk 0:02:40.2]} 8. g4 {[%clk 0:02:56.5]}
8... Nd7 {[%clk 0:02:40.4]} 9. Qd2 {[%clk 0:02:54.9]} 9... Ndc5 {[%clk
0:02:40.2]} 10. h4 {[%clk 0:02:51.5]} 10... h5 {[%clk 0:02:36.7]} 11. gxh5
{[%clk 0:02:50.5]} 11... gxh5 {[%clk 0:02:35.5]} 12. O-O-O {[%clk 0:02:45.1]}
12... f5 {[%clk 0:02:32.1]} 13. Nh3 {[%clk 0:02:36.9]} 13... f4 {[%clk
0:02:27.2]} 14. Bxc5 {[%clk 0:02:35.5]} 14... Nxc5 {[%clk 0:02:28.1]} 15. Rdg1
{[%clk 0:02:34.1]} 15... Bf6 {[%clk 0:02:27.6]} 16. Ng5 {[%clk 0:02:26.9]} 16...
Ke7 {[%clk 0:02:27.1]} 17. Qd1 {[%clk 0:02:23.1]} 17... Qe8 {[%clk 0:02:26.8]}
18. Bf1 {[%clk 0:02:10.4]} 18... Bg4 {[%clk 0:02:24.4]} 19. f3 {[%clk
0:02:10.3]} 19... Bd7 {[%clk 0:02:19.9]} 20. Bh3 {[%clk 0:02:10.8]} 20... Bxh3
{[%clk 0:02:17]} 21. Rxh3 {[%clk 0:02:05.9]} 21... Qd7 {[%clk 0:02:16.6]} 22.
Rh2 {[%clk 0:02:05.8]} 22... Rag8 {[%clk 0:02:05.4]} 23. Qf1 {[%clk 0:01:48.7]}
23... Bxg5 {[%clk 0:02:02.8]} 24. Rxg5 {[%clk 0:01:41.9]} 24... Rxg5 {[%clk
0:02:01.1]} 25. hxg5 {[%clk 0:01:42.8]} 25... Kf7 {[%clk 0:02:01]} 26. Nd1
{[%clk 0:01:21.7]} 26... Kg6 {[%clk 0:01:58.2]} 27. Nf2 {[%clk 0:01:20.9]} 27...
c6 {[%clk 0:01:50.6]} 28. Kb1 {[%clk 0:01:19.2]} 28... cxd5 {[%clk 0:01:49.3]}
29. cxd5 {[%clk 0:01:14.4]} 29... b5 {[%clk 0:01:45.8]} 30. Qh3 {[%clk 0:01:09]}
30... Qxh3 {[%clk 0:01:44.6]} 31. Nxh3 {[%clk 0:01:09.9]} 31... Rc8 {[%clk
0:01:29.5]} 32. Rc2 {[%clk 0:01:08.7]} 32... Rc7 {[%clk 0:01:29.7]} 33. Rc3
{[%clk 0:00:54]} 33... Na6 {[%clk 0:01:27.7]} 34. Rc6 {[%clk 0:00:19.8]} 34...
Rxc6 {[%clk 0:01:16.4]} 35. dxc6 {[%clk 0:00:20.7]} 35... Nc7 {[%clk 0:01:15.1]}
36. Kc2 {[%clk 0:00:21.1]} 36... Kf7 {[%clk 0:01:14.2]} 37. Kd3 {[%clk
0:00:21.2]} 37... Ne6 {[%clk 0:01:13.9]} 38. a4 {[%clk 0:00:19.5]} 38... bxa4
{[%clk 0:01:11.1]} 39. Kc4 {[%clk 0:00:19.9]} 39... Nc7 {[%clk 0:01:11.4]} 40.
Nf2 {[%clk 0:00:16.9]} 40... h4 {[%clk 0:01:10.8]} 41. Nh3 {[%clk 0:00:17.1]}
41... Ke6 {[%clk 0:01:09.5]} 42. Nf2 {[%clk 0:00:16.9]} 42... Ke7 {[%clk
0:01:02.5]} 43. Nh3 {[%clk 0:00:15.6]} 43... Kf7 {[%clk 0:01:02.8]} 44. Nf2
{[%clk 0:00:15.4]} 44... Kg6 {[%clk 0:00:53.4]} 45. Nh3 {[%clk 0:00:15.6]} 45...
Kh5 {[%clk 0:00:53.4]} 46. Kc3 {[%clk 0:00:15.3]} 46... d5 {[%clk 0:00:53.7]}
47. exd5 {[%clk 0:00:15.6]} 47... Nxd5+ {[%clk 0:00:54.6]} 48. Kc4 {[%clk
0:00:16.2]} 48... Nc7 {[%clk 0:00:55.1]} 49. Kc5 {[%clk 0:00:16.8]} 49... e4
{[%clk 0:00:55]} 50. fxe4 {[%clk 0:00:17.3]} 50... f3 {[%clk 0:00:55.2]} 51. Kd4
{[%clk 0:00:15.6]} 51... Ne6+ {[%clk 0:00:46]} 52. Ke3 {[%clk 0:00:14.7]} 52...
Kg4 {[%clk 0:00:44.3]} 53. Nf2+ {[%clk 0:00:14.3]} 53... Kxg5 {[%clk 0:00:43.7]}
54. Kxf3 {[%clk 0:00:14.9]} 54... Nd4+ {[%clk 0:00:43.6]} 55. Ke3 {[%clk
0:00:15.4]} 55... Nxc6 {[%clk 0:00:44.5]} 56. Kd3 {[%clk 0:00:14.8]} 56... Kf4
{[%clk 0:00:43.4]} 57. Kc3 {[%clk 0:00:15.4]} 57... Kf3 {[%clk 0:00:42.5]} 58.
Nh3 {[%clk 0:00:15.4]} 58... Kxe4 {[%clk 0:00:42.6]} 59. Kc4 {[%clk 0:00:16]}
59... Kf3 {[%clk 0:00:39.4]} 60. Kb5 {[%clk 0:00:16.5]} 60... Nb4 {[%clk
0:00:37.2]} 61. Kxa4 {[%clk 0:00:16]} 61... Nd3 {[%clk 0:00:37.4]} 62. b3 {[%clk
0:00:16.3]} 62... Nc5+ {[%clk 0:00:37.7]} 63. Kxa5 {[%clk 0:00:14.7]} 63...
Nxb3+ {[%clk 0:00:37.2]} 64. Kb4 {[%clk 0:00:15.6]} 64... Nd4 {[%clk 0:00:36.4]}
65. Kc3 {[%clk 0:00:16.2]} 65... Ne6 {[%clk 0:00:32.6]} 66. Kd2 {[%clk
0:00:16.3]} 66... Kg2 {[%clk 0:00:32.7]} 0-1